Workbook

Sheet TOT-0516
B2: ANEXO V al Memorandum D.T.E.E. N° 294 / 2017
A4: ENTE NACIONAL REGULADOR
A5: DE LA ELECTRICIDAD
B7: SISTEMA DE TRANSPORTE DE ENERGÍA ELÉCTRICA POR DISTRIBUCIÓN TRONCAL
B9: TRANSNEA S.A.
B11: TOTAL DE PENALIZACIONES
B13: 2
B14: Desde el 01 al 31 de mayo de 2016
B16: Sanciones duplicadas por tasa de falla > 4 Sal. x año/100km.
C18: 1.- | D18: LÍNEAS
D20: 1.1.- | E20: Equipamiento propio | I20: ='LI-05 (1)'!AA43 -> 565745.86
D21: 1.2.- | E21: Transportista Independiente D.P.E.C. | I21: ='LI-DPEC-05 (1)'!AA44 -> 46672.85
C23: 2.- | D23: CONEXIÓN
D25: 2.1.- | E25: Transformación
E26: 2.1.1.- | F26: Equipamiento propio | I26: =+'T-05 (2)'!AC43 -> 13803.99
D27: 2.2.- | E27: Salidas
E28: 2.2.1.- | F28: Equipamiento propio | I28: ='SA-05 (1)'!V43 -> 1690.68
C30: 3.- | D30: SUPERVISIÓN
D32: 3.1.- | E32: Transportista Independiente D.P.E.C. | I32: ='SUP-DPEC'!I66 -> 8905.402618
F35: TOTAL | G35: =SUM(I20:I32) -> 636818.7826

Sheet LI-05 (1)
B2: =+'TOT-0516'!B2 -> ANEXO V al Memorandum D.T.E.E. N° 294 / 2017
A4: ENTE NACIONAL REGULADOR
A5: DE LA ELECTRICIDAD
F8: SISTEMA DE TRANSPORTE DE ENERGÍA ELÉCTRICA POR DISTRIBUCIÓN TRONCAL - TRANSNEA S.A.
F10: 1.- LÍNEAS
F12: 1.1.- Líneas propias
B14: =+'TOT-0516'!B14 -> Desde el 01 al 31 de mayo de 2016
F16: $/100 km-h : LÍNEAS 220 kV | G16: 360.925
F17: $/100 km-h : LÍNEAS 132 kV | G17: 345.493 | K17: FACTOR DE PENALIZACIÓN K = | L17: =30*'TOT-0516'!B13 -> 60 | M17: =IF(L17=30," ",IF(L17=60,"Coeficiente duplicado por tasa de falla >4 Sal. x año/100 km.","REVISAR COEFICIENTE")) -> Coeficiente duplicado por tasa de falla >4 Sal. x año/100 km.
F18: $/100 km-h : LÍNEAS 33 kV | G18: 345.493
C19: 3 | D19: 4 | E19: 5 | F19: 6 | G19: 7 | H19: 8 | I19: 9 | J19: 10 | K19: 11 | L19: 12 | M19: 13 | N19: 14 | O19: 15 | P19: 16 | Q19: 17 | R19: 18 | S19: 19 | T19: 20 | U19: 21 | V19: 22 | W19: 23 | X19: 24 | Y19: 25 | Z19: 26 | AA19: 27
C20: N° | D20: INDISP | E20: ID EQUIPO | F20: LÍNEAS | G20: U [kV] | H20: Long. [km] | I20: $/h | J20: Salida | K20: Entrada | L20: Hs. Indisp. | M20: Minutos Indisp. | N20: Tipo Sal.(²) | O20: C.R. % | P20: PENALIZAC. PROGRAM. | Q20: REDUCC. PROGRAM. | R20: PENALIZACIÓN FORZADA Por Salida 1ras. 3 hs. hs. Restantes | U20: REDUCC. FORZADA Por Salida 1ras. 3 hs. hs. Restantes | X20: RESTANTE FORZADA | Y20: REDUCC. RESTANTE | Z20: Informó enTérm. | AA20: TOTAL PENALIZAC.
C23: 1 | D23: 261606 | E23: 748 | F23: STA. CATALINA - RESISTENCIA | G23: 132 | H23: 42 | I23: =IF(H23>25,H23,25)*IF(G23=220,$G$16,IF(G23=132,$G$17,$G$18))/100 -> 145.10706 | J23: 2016-05-01 | K23: 2016-05-31T23:59:59 | L23: =IF(F23="","",(K23-J23)*24) -> 743.9997222 | M23: =IF(F23="","",ROUND((K23-J23)*24*60,0)) -> 44640 | N23: P | O23: =IF(F23="","","--") -> -- | P23: =IF(N23="P",ROUND(M23/60,2)*I23*$L$17*0.01,"--") -> 64775.79158 | Q23: =IF(N23="RP",ROUND(M23/60,2)*I23*$L$17*0.01*O23/100,"--") -> -- | R23: =IF(N23="F",I23*$L$17,"--") -> -- | S23: =IF(AND(M23>10,N23="F"),I23*$L$17*IF(M23>180,3,ROUND(M23/60,2)),"--") -> -- | T23: =IF(AND(N23="F",M23>180),(ROUND(M23/60,2)-3)*I23*$L$17*0.1,"--") -> -- | U23: =IF(N23="R",I23*$L$17*O23/100,"--") -> -- | V23: =IF(AND(M23>10,N23="R"),I23*$L$17*O23/100*IF(M23>180,3,ROUND(M23/60,2)),"--") -> -- | W23: =IF(AND(N23="R",M23>180),(ROUND(M23/60,2)-3)*I23*$L$17*0.1*O23/100,"--") -> -- | X23: =IF(N23="RF",ROUND(M23/60,2)*I23*$L$17*0.1,"--") -> -- | Y23: =IF(N23="RR",ROUND(M23/60,2)*I23*$L$17*0.1*O23/100,"--") -> -- | Z23: SI | AA23: =IF(F23="","",SUM(P23:Y23)*IF(Z23="SI",1,2)) -> 64775.79158
C24: 2 | D24: 291181 | E24: 946 | F24: PASO DE LOS LIBRES - URUGUAYANA | G24: 132 | H24: 3.900000095 | I24: =IF(H24>25,H24,25)*IF(G24=220,$G$16,IF(G24=132,$G$17,$G$18))/100 -> 86.37325 | J24: 2016-05-01 | K24: 2016-05-31T23:59:59 | L24: =IF(F24="","",(K24-J24)*24) -> 743.9997222 | M24: =IF(F24="","",ROUND((K24-J24)*24*60,0)) -> 44640 | N24: RF | O24: =IF(F24="","","--") -> -- | P24: =IF(N24="P",ROUND(M24/60,2)*I24*$L$17*0.01,"--") -> -- | Q24: =IF(N24="RP",ROUND(M24/60,2)*I24*$L$17*0.01*O24/100,"--") -> -- | R24: =IF(N24="F",I24*$L$17,"--") -> -- | S24: =IF(AND(M24>10,N24="F"),I24*$L$17*IF(M24>180,3,ROUND(M24/60,2)),"--") -> -- | T24: =IF(AND(N24="F",M24>180),(ROUND(M24/60,2)-3)*I24*$L$17*0.1,"--") -> -- | U24: =IF(N24="R",I24*$L$17*O24/100,"--") -> -- | V24: =IF(AND(M24>10,N24="R"),I24*$L$17*O24/100*IF(M24>180,3,ROUND(M24/60,2)),"--") -> -- | W24: =IF(AND(N24="R",M24>180),(ROUND(M24/60,2)-3)*I24*$L$17*0.1*O24/100,"--") -> -- | X24: =IF(N24="RF",ROUND(M24/60,2)*I24*$L$17*0.1,"--") -> 385570.188 | Y24: =IF(N24="RR",ROUND(M24/60,2)*I24*$L$17*0.1*O24/100,"--") -> -- | Z24: SI | AA24: =IF(F24="","",SUM(P24:Y24)*IF(Z24="SI",1,2)) -> 385570.188
C25: 3 | D25: 302281 | E25: 743 | F25: SALTO GRANDE - CHAJARÍ | G25: 132 | H25: 60.9 | I25: 210.405237 | J25: 2016-05-04T08:18:00 | K25: 2016-05-08T13:48:00 | L25: 101.5 | M25: 6090 | N25: P | O25: -- | P25: 12813.67893 | Q25: -- | R25: -- | S25: -- | T25: -- | U25: -- | V25: -- | W25: -- | X25: -- | Y25: -- | Z25: SI | AA25: 12813.67893
C26: 4 | D26: 302284 | E26: 5557 | F26: MANSILLA - RESISTENCIA 132 1 | G26: 132 | H26: 109.5 | I26: 378.314835 | J26: 2016-05-06T09:22:00 | K26: 2016-05-06T09:37:00 | L26: 0.2499999999 | M26: 15 | N26: F | O26: -- | P26: -- | Q26: -- | R26: 22698.8901 | S26: 5674.722525 | T26: -- | U26: -- | V26: -- | W26: -- | X26: -- | Y26: -- | Z26: SI | AA26: 28373.61263
C27: 5 | D27: 302568 | E27: 5047 | F27: GRAN FORMOSA - CLORINDA 1 | G27: 132 | H27: 103.5 | I27: 357.585255 | J27: 2016-05-10T08:55:00 | K27: 2016-05-10T09:00:00 | L27: 0.08333333326 | M27: 5 | N27: F | O27: -- | P27: -- | Q27: -- | R27: 21455.1153 | S27: -- | T27: -- | U27: -- | V27: -- | W27: -- | X27: -- | Y27: -- | Z27: SI | AA27: 21455.1153
C28: 6/7 | D28: 302619/302591 | E28: 5394 | F28: STA. CATALINA - COLONIA BRUGNE - B. VISTA | G28: 132 | H28: 121 | I28: 418.04653 | J28: 2016-05-14T13:06:00 | K28: 2016-05-14T13:13:00 | L28: 0.1166666667 | M28: 7 | N28: F | O28: -- | P28: -- | Q28: -- | R28: 25082.7918 | S28: -- | T28: -- | U28: -- | V28: -- | W28: -- | X28: -- | Y28: -- | Z28: SI | AA28: 25082.7918
C30: 8/9 | D30: 302620/302602 | E30: 5394 | F30: STA. CATALINA - COLONIA BRUGNE - B. VISTA | G30: 132 | H30: 121 | I30: 418.04653 | J30: 2016-05-15T10:35:00 | K30: 2016-05-15T10:43:00 | L30: 0.1333333334 | M30: 8 | N30: F | O30: =IF(F30="","","--") -> -- | P30: =IF(N30="P",ROUND(M30/60,2)*I30*$L$17*0.01,"--") -> -- | Q30: =IF(N30="RP",ROUND(M30/60,2)*I30*$L$17*0.01*O30/100,"--") -> -- | R30: =IF(N30="F",I30*$L$17,"--") -> 25082.7918 | S30: =IF(AND(M30>10,N30="F"),I30*$L$17*IF(M30>180,3,ROUND(M30/60,2)),"--") -> -- | T30: =IF(AND(N30="F",M30>180),(ROUND(M30/60,2)-3)*I30*$L$17*0.1,"--") -> -- | U30: =IF(N30="R",I30*$L$17*O30/100,"--") -> -- | V30: =IF(AND(M30>10,N30="R"),I30*$L$17*O30/100*IF(M30>180,3,ROUND(M30/60,2)),"--") -> -- | W30: =IF(AND(N30="R",M30>180),(ROUND(M30/60,2)-3)*I30*$L$17*0.1*O30/100,"--") -> -- | X30: =IF(N30="RF",ROUND(M30/60,2)*I30*$L$17*0.1,"--") -> -- | Y30: =IF(N30="RR",ROUND(M30/60,2)*I30*$L$17*0.1*O30/100,"--") -> -- | Z30: =IF(F30="","","SI") -> SI | AA30: 25082.7918
C32: 10 | D32: 302893 | E32: 4317 | F32: PIRANE - IBARRETA 132 1 | G32: 132 | H32: 91.8 | I32: 317.162574 | J32: 2016-05-18T07:33:00 | K32: 2016-05-18T12:09:00 | L32: 4.6 | M32: 276 | N32: P | O32: -- | P32: 875.3687042 | Q32: -- | R32: -- | S32: -- | T32: -- | U32: -- | V32: -- | W32: -- | X32: -- | Y32: -- | Z32: SI | AA32: 875.3687042
C33: 11 | D33: 302894 | E33: 5394 | F33: STA. CATALINA - COLONIA BRUGNE - B. VISTA | G33: 132 | H33: 121 | I33: 418.04653 | J33: 2016-05-18T13:31:00 | K33: 2016-05-18T15:38:00 | L33: 2.116666667 | M33: 127 | N33: P | O33: -- | P33: 531.7551862 | Q33: -- | R33: -- | S33: -- | T33: -- | U33: -- | V33: -- | W33: -- | X33: -- | Y33: -- | Z33: SI | AA33: 531.7551862
C34: 12 | D34: 302895 | E34: 4317 | F34: PIRANE - IBARRETA 132 1 | G34: 132 | H34: 91.8 | I34: 317.162574 | J34: 2016-05-19T07:21:00 | K34: 2016-05-19T11:22:00 | L34: 4.016666667 | M34: 241 | N34: P | O34: -- | P34: 764.9961285 | Q34: -- | R34: -- | S34: -- | T34: -- | U34: -- | V34: -- | W34: -- | X34: -- | Y34: -- | Z34: SI | AA34: 764.9961285
C35: 13 | D35: 302908 | E35: 1002 | F35: BARRANQUERAS - CORRIENTES 1 CA | G35: 33 | H35: 3.8 | I35: 86.37325 | J35: 2016-05-19T08:45:00 | K35: 2016-05-19T11:48:00 | L35: 3.05 | M35: 183 | N35: P | O35: -- | P35: 158.0630475 | Q35: -- | R35: -- | S35: -- | T35: -- | U35: -- | V35: -- | W35: -- | X35: -- | Y35: -- | Z35: SI | AA35: 158.0630475
C36: 14 | D36: 302909 | E36: 1003 | F36: BARRANQUERAS - CORRIENTES 2 CA | G36: 33 | H36: 3.8 | I36: 86.37325 | J36: 2016-05-19T08:45:00 | K36: 2016-05-19T11:48:00 | L36: 3.05 | M36: 183 | N36: P | O36: -- | P36: 158.0630475 | Q36: -- | R36: -- | S36: -- | T36: -- | U36: -- | V36: -- | W36: -- | X36: -- | Y36: -- | Z36: =IF(F36="","","SI") -> SI | AA36: 158.0630475
C37: 15 | D37: 302912 | E37: 741 | F37: CORRIENTES - SANTA CATALINA | G37: 132 | H37: 10.2 | I37: 86.37325 | J37: 2016-05-22T07:50:00 | K37: 2016-05-22T09:50:00 | L37: 2 | M37: 120 | N37: P | O37: -- | P37: 103.6479 | Q37: -- | R37: -- | S37: -- | T37: -- | U37: -- | V37: -- | W37: -- | X37: -- | Y37: -- | Z37: SI | AA37: 103.6479
I38: 86.37325 | P38: -- | Q38: -- | R38: -- | S38: -- | T38: -- | U38: -- | V38: -- | W38: -- | X38: -- | Y38: --
I39: 86.37325 | P39: -- | Q39: -- | R39: -- | S39: -- | T39: -- | U39: -- | V39: -- | W39: -- | X39: -- | Y39: --
I40: =IF(H40>25,H40,25)*IF(G40=220,$G$16,IF(G40=132,$G$17,$G$18))/100 -> 86.37325 | L40: =IF(F40="","",(K40-J40)*24) ->  | M40: =IF(F40="","",ROUND((K40-J40)*24*60,0)) ->  | O40: =IF(F40="","","--") ->  | P40: =IF(N40="P",ROUND(M40/60,2)*I40*$L$17*0.01,"--") -> -- | Q40: =IF(N40="RP",ROUND(M40/60,2)*I40*$L$17*0.01*O40/100,"--") -> -- | R40: =IF(N40="F",I40*$L$17,"--") -> -- | S40: =IF(AND(M40>10,N40="F"),I40*$L$17*IF(M40>180,3,ROUND(M40/60,2)),"--") -> -- | T40: =IF(AND(N40="F",M40>180),(ROUND(M40/60,2)-3)*I40*$L$17*0.1,"--") -> -- | U40: =IF(N40="R",I40*$L$17*O40/100,"--") -> -- | V40: =IF(AND(M40>10,N40="R"),I40*$L$17*O40/100*IF(M40>180,3,ROUND(M40/60,2)),"--") -> -- | W40: =IF(AND(N40="R",M40>180),(ROUND(M40/60,2)-3)*I40*$L$17*0.1*O40/100,"--") -> -- | X40: =IF(N40="RF",ROUND(M40/60,2)*I40*$L$17*0.1,"--") -> -- | Y40: =IF(N40="RR",ROUND(M40/60,2)*I40*$L$17*0.1*O40/100,"--") -> -- | Z40: =IF(F40="","","SI") -> 
I41: =IF(H41>25,H41,25)*IF(G41=220,$G$16,IF(G41=132,$G$17,$G$18))/100 -> 86.37325 | L41: =IF(F41="","",(K41-J41)*24) ->  | M41: =IF(F41="","",ROUND((K41-J41)*24*60,0)) ->  | O41: =IF(F41="","","--") ->  | P41: =IF(N41="P",ROUND(M41/60,2)*I41*$L$17*0.01,"--") -> -- | Q41: =IF(N41="RP",ROUND(M41/60,2)*I41*$L$17*0.01*O41/100,"--") -> -- | R41: =IF(N41="F",I41*$L$17,"--") -> -- | S41: =IF(AND(M41>10,N41="F"),I41*$L$17*IF(M41>180,3,ROUND(M41/60,2)),"--") -> -- | T41: =IF(AND(N41="F",M41>180),(ROUND(M41/60,2)-3)*I41*$L$17*0.1,"--") -> -- | U41: =IF(N41="R",I41*$L$17*O41/100,"--") -> -- | V41: =IF(AND(M41>10,N41="R"),I41*$L$17*O41/100*IF(M41>180,3,ROUND(M41/60,2)),"--") -> -- | W41: =IF(AND(N41="R",M41>180),(ROUND(M41/60,2)-3)*I41*$L$17*0.1*O41/100,"--") -> -- | X41: =IF(N41="RF",ROUND(M41/60,2)*I41*$L$17*0.1,"--") -> -- | Y41: =IF(N41="RR",ROUND(M41/60,2)*I41*$L$17*0.1*O41/100,"--") -> -- | Z41: =IF(F41="","","SI") -> 
C43: (²) | D43: P - PROGRAMADA ; F - FORZADA ; RF - RESTANTE FORZADA | P43: =SUM(P21:P42) -> 80181.36453 | Q43: =SUM(Q21:Q42) -> 0 | R43: =SUM(R21:R42) -> 94319.589 | S43: 5674.722525 | T43: 0 | U43: 0 | V43: 0 | W43: 0 | X43: 385570.188 | Y43: 0 | AA43: =ROUND(SUM(AA21:AA42),2) -> 565745.86

Sheet LI-DPEC-05 (1)
B2: ='TOT-0516'!B2 -> ANEXO V al Memorandum D.T.E.E. N° 294 / 2017
A4: ENTE NACIONAL REGULADOR
A5: DE LA ELECTRICIDAD
F8: SISTEMA DE TRANSPORTE DE ENERGÍA ELÉCTRICA POR DISTRIBUCIÓN TRONCAL - TRANSNEA S.A.
F10: 1.2.-Transportista Independiente - Dirección Provincial de Energía de Corrientes (D.P.E.C.)
B12: ='TOT-0516'!B14 -> Desde el 01 al 31 de mayo de 2016
F15: $/100 km-h : LÍNEAS 220 kV | G15: -
F16: $/100 km-h : LÍNEAS 132 kV | G16: 145.147 | K16: FACTOR DE PENALIZACIÓN K = | L16: =30*'TOT-0516'!B13 -> 60 | M16: =IF(L16=30," ",IF(L16=60,"Coeficiente duplicado por tasa de falla >4 Sal. x año/100 km.","REVISAR COEFICIENTE")) -> Coeficiente duplicado por tasa de falla >4 Sal. x año/100 km.
F17: $/100 km-h : LÍNEAS 66 kV | G17: -
C19: 3 | D19: 4 | E19: 5 | F19: 6 | G19: 7 | H19: 8 | I19: 9 | J19: 10 | K19: 11 | L19: 12 | M19: 13 | N19: 14 | O19: 15 | P19: 16 | Q19: 17 | R19: 18 | S19: 19 | T19: 20 | U19: 21 | V19: 22 | W19: 23 | X19: 24 | Y19: 25 | Z19: 26 | AA19: 27
C20: N° | D20: INDISP | E20: ID EQUIPO | F20: LÍNEAS | G20: U [kV] | H20: Long. [km] | I20: $/h | J20: Salida | K20: Entrada | L20: Hs. Indisp. | M20: Minutos Indisp. | N20: Tipo Sal.(²) | O20: C.R. % | P20: PENALIZAC. PROGRAM. | Q20: REDUCC. PROGRAM. | R20: PENALIZACIÓN FORZADA Por Salida 1ras. 3 hs. hs. Restantes | U20: REDUCC. FORZADA Por Salida 1ras. 3 hs. hs. Restantes | X20: RESTANTE FORZADA | Y20: REDUCC. RESTANTE | Z20: Informó enTérm. | AA20: TOTAL PENALIZAC.
C23: 46 | D23: 302268 | E23: 1001 | F23: PASO DE LOS LIBRES - MONTE CASEROS | G23: 132 | H23: 101 | I23: =IF(H23>25,H23,25)*IF(G23=220,$G$15,IF(G23=132,$G$16,$G$17))/100 -> 146.59847 | J23: 2016-05-02T06:23:00 | K23: 2016-05-02T08:15:00 | L23: =IF(F23="","",(K23-J23)*24) -> 1.866666667 | M23: =IF(F23="","",ROUND((K23-J23)*24*60,0)) -> 112 | N23: F | O23: =IF(F23="","","--") -> -- | P23: =IF(N23="P",ROUND(M23/60,2)*I23*$L$16*0.01,"--") -> -- | Q23: =IF(N23="RP",ROUND(M23/60,2)*I23*$L$16*0.01*O23/100,"--") -> -- | R23: =IF(N23="F",I23*$L$16,"--") -> 8795.9082 | S23: =IF(AND(M23>10,N23="F"),I23*$L$16*IF(M23>180,3,ROUND(M23/60,2)),"--") -> 16448.34833 | T23: =IF(AND(N23="F",M23>180),(ROUND(M23/60,2)-3)*I23*$L$16*0.1,"--") -> -- | U23: =IF(N23="R",I23*$L$16*O23/100,"--") -> -- | V23: =IF(AND(M23>10,N23="R"),I23*$L$16*O23/100*IF(M23>180,3,ROUND(M23/60,2)),"--") -> -- | W23: =IF(AND(N23="R",M23>180),(ROUND(M23/60,2)-3)*I23*$L$16*0.1*O23/100,"--") -> -- | X23: =IF(N23="RF",ROUND(M23/60,2)*I23*$L$16*0.1,"--") -> -- | Y23: =IF(N23="RR",ROUND(M23/60,2)*I23*$L$16*0.1*O23/100,"--") -> -- | Z23: =IF(F23="","","SI") -> SI | AA23: =IF(F23="","",SUM(P23:Y23)*IF(Z23="SI",1,2)) -> 25244.25653
C24: 47 | D24: 302285 | E24: 1001 | F24: PASO DE LOS LIBRES - MONTE CASEROS | G24: 132 | H24: 101 | I24: =IF(H24>25,H24,25)*IF(G24=220,$G$15,IF(G24=132,$G$16,$G$17))/100 -> 146.59847 | J24: 2016-05-08T07:52:00 | K24: 2016-05-08T08:15:00 | L24: 0.3833333334 | M24: =IF(F24="","",ROUND((K24-J24)*24*60,0)) -> 23 | N24: F | O24: -- | P24: -- | Q24: -- | R24: =IF(N24="F",I24*$L$16,"--") -> 8795.9082 | S24: 3342.445116 | T24: -- | U24: -- | V24: -- | W24: -- | X24: =IF(N24="RF",ROUND(M24/60,2)*I24*$L$16*0.1,"--") -> -- | Y24: =IF(N24="RR",ROUND(M24/60,2)*I24*$L$16*0.1*O24/100,"--") -> -- | Z24: SI | AA24: =IF(F24="","",SUM(P24:Y24)*IF(Z24="SI",1,2)) -> 12138.35332
C25: 48 | D25: 302567 | E25: 1001 | F25: PASO DE LOS LIBRES - MONTE CASEROS | G25: 132 | H25: 101 | I25: 146.59847 | J25: 2016-05-10T08:02:00 | K25: 2016-05-10T17:50:00 | L25: 9.8 | M25: 588 | N25: P | O25: -- | P25: 861.9990036 | Q25: -- | R25: -- | S25: -- | T25: -- | U25: -- | V25: -- | W25: -- | X25: -- | Y25: -- | Z25: SI | AA25: 861.9990036
C26: 49 | D26: 302587 | E26: 1001 | F26: PASO DE LOS LIBRES - MONTE CASEROS | G26: 132 | H26: 101 | I26: 146.59847 | J26: 2016-05-11T07:54:00 | K26: 2016-05-11T17:55:00 | L26: 10.01666667 | M26: 601 | N26: P | O26: -- | P26: 881.3500016 | Q26: -- | R26: -- | S26: -- | T26: -- | U26: -- | V26: -- | W26: -- | X26: -- | Y26: -- | Z26: SI | AA26: 881.3500016
C27: 50 | D27: 302588 | E27: 1001 | F27: PASO DE LOS LIBRES - MONTE CASEROS | G27: 132 | H27: 101 | I27: 146.59847 | J27: 2016-05-12T08:10:00 | K27: 2016-05-12T20:19:00 | L27: 12.15 | M27: 729 | N27: P | O27: -- | P27: 1068.702846 | Q27: -- | R27: -- | S27: -- | T27: -- | U27: -- | V27: -- | W27: -- | X27: -- | Y27: -- | Z27: SI | AA27: 1068.702846
C28: 51 | D28: 302589 | E28: 1001 | F28: PASO DE LOS LIBRES - MONTE CASEROS | G28: 132 | H28: 101 | I28: 146.59847 | J28: 2016-05-13T07:42:00 | K28: 2016-05-13T17:26:00 | L28: 9.733333333 | M28: 584 | N28: P | O28: -- | P28: 855.8418679 | Q28: -- | R28: -- | S28: -- | T28: -- | U28: -- | V28: -- | W28: -- | X28: -- | Y28: -- | Z28: SI | AA28: 855.8418679
C29: 52 | D29: 302590 | E29: 1001 | F29: PASO DE LOS LIBRES - MONTE CASEROS | G29: 132 | H29: 101 | I29: 146.59847 | J29: 2016-05-14T08:09:00 | K29: 2016-05-14T17:58:00 | L29: 9.816666667 | M29: 589 | N29: P | O29: -- | P29: 863.7581852 | Q29: -- | R29: -- | S29: -- | T29: -- | U29: -- | V29: -- | W29: -- | X29: -- | Y29: -- | Z29: SI | AA29: 863.7581852
C30: 53 | D30: 302896 | E30: 1001 | F30: PASO DE LOS LIBRES - MONTE CASEROS | G30: 132 | H30: 101 | I30: 146.59847 | J30: 2016-05-19T07:05:00 | K30: 2016-05-21T13:11:00 | L30: 54.1 | M30: 3246 | N30: P | O30: -- | P30: 4758.586336 | Q30: -- | R30: -- | S30: -- | T30: -- | U30: -- | V30: -- | W30: -- | X30: -- | Y30: -- | Z30: SI | AA30: 4758.586336
P31: -- | Q31: -- | R31: -- | S31: -- | T31: -- | U31: -- | V31: -- | W31: -- | X31: -- | Y31: --
P32: -- | Q32: -- | R32: -- | S32: -- | T32: -- | U32: -- | V32: -- | W32: -- | X32: -- | Y32: --
P33: -- | Q33: -- | R33: -- | S33: -- | T33: -- | U33: -- | V33: -- | W33: -- | X33: -- | Y33: --
P34: -- | Q34: -- | R34: -- | S34: -- | T34: -- | U34: -- | V34: -- | W34: -- | X34: -- | Y34: --
P35: -- | Q35: -- | R35: -- | S35: -- | T35: -- | U35: -- | V35: -- | W35: -- | X35: -- | Y35: --
P36: -- | Q36: -- | R36: -- | S36: -- | T36: -- | U36: -- | V36: -- | W36: -- | X36: -- | Y36: --
P37: -- | Q37: -- | R37: -- | S37: -- | T37: -- | U37: -- | V37: -- | W37: -- | X37: -- | Y37: --
P38: -- | Q38: -- | R38: -- | S38: -- | T38: -- | U38: -- | V38: -- | W38: -- | X38: -- | Y38: --
P39: -- | Q39: -- | R39: -- | S39: -- | T39: -- | U39: -- | V39: -- | W39: -- | X39: -- | Y39: --
I40: =IF(H40>25,H40,25)*IF(G40=220,$G$15,IF(G40=132,$G$16,$G$17))/100 ->  | M40: =IF(F40="","",ROUND((K40-J40)*24*60,0)) ->  | P40: -- | Q40: -- | R40: -- | S40: -- | T40: -- | U40: -- | V40: -- | W40: -- | X40: =IF(N40="RF",ROUND(M40/60,2)*I40*$L$16*0.1,"--") -> -- | Y40: =IF(N40="RR",ROUND(M40/60,2)*I40*$L$16*0.1*O40/100,"--") -> --
I41: =IF(H41>25,H41,25)*IF(G41=220,$G$15,IF(G41=132,$G$16,$G$17))/100 ->  | M41: =IF(F41="","",ROUND((K41-J41)*24*60,0)) ->  | P41: -- | Q41: -- | R41: -- | S41: -- | T41: -- | U41: -- | V41: -- | W41: -- | X41: =IF(N41="RF",ROUND(M41/60,2)*I41*$L$16*0.1,"--") -> -- | Y41: =IF(N41="RR",ROUND(M41/60,2)*I41*$L$16*0.1*O41/100,"--") -> --
I42: =IF(H42>25,H42,25)*IF(G42=220,$G$15,IF(G42=132,$G$16,$G$17))/100 ->  | M42: =IF(F42="","",ROUND((K42-J42)*24*60,0)) ->  | P42: -- | Q42: -- | R42: -- | S42: -- | T42: -- | U42: -- | V42: -- | W42: -- | X42: =IF(N42="RF",ROUND(M42/60,2)*I42*$L$16*0.1,"--") -> -- | Y42: =IF(N42="RR",ROUND(M42/60,2)*I42*$L$16*0.1*O42/100,"--") -> --
C44: (²) | D44: P - PROGRAMADA ; F - FORZADA | P44: =SUM(P21:P43) -> 9290.238241 | Q44: 0 | R44: 17591.8164 | S44: 19790.79345 | T44: 0 | U44: 0 | V44: 0 | W44: 0 | X44: 0 | Y44: 0 | AA44: =ROUND(SUM(AA21:AA43),2) -> 46672.85

Sheet T-05 (1)
B2: =+'TOT-0516'!B2 -> ANEXO V al Memorandum D.T.E.E. N° 294 / 2017
A4: ENTE NACIONAL REGULADOR
A5: DE LA ELECTRICIDAD
F8: SISTEMA DE TRANSPORTE DE ENERGÍA ELÉCTRICA POR DISTRIBUCIÓN TRONCAL - TRANSNEA S.A.
F10: 2.- CONEXIÓN
F12: 2.1.- Transformación
B14: =+'TOT-0516'!B14 -> Desde el 01 al 31 de mayo de 2016
F16: Por Transformador [$ / h - MVA] = | I16: 1.235
F17: Coeficiente de penalización por salida forzada = | I17: =30*'TOT-0516'!B13 -> 60 | K17: =IF(I17=30," ",IF(I17=60," Coeficiente duplicado por tasa de falla >4 Sal. x año/100 km."," REVISAR COEFICIENTE")) -> Coeficiente duplicado por tasa de falla >4 Sal. x año/100 km.
C18: 3 | D18: 4 | E18: 5 | F18: 6 | G18: 7 | H18: 8 | I18: 9 | J18: 10 | K18: 11 | L18: 12 | M18: 13 | N18: 14 | O18: 15 | P18: 16 | Q18: 17 | R18: 18 | S18: 19 | T18: 20 | U18: 21 | V18: 22 | W18: 23 | X18: 24 | Y18: 25 | Z18: 26 | AA18: 27 | AB18: 28 | AC18: 29
C19: N° | D19: INDISP | E19: ID EQUIPO | F19: ESTACIÓN TRANSFORMADORA | G19: EQUIPO | H19: POT. [MVA] | I19: U [kV] | J19: $/h | K19: Salida | L19: Entrada | M19: Hs. Indisp. | N19: Mtos. Indisp. | O19: Tipo Sal.(²) | P19: AUT. | Q19: C.R. % | R19: E.N.S. | S19: K (P;ENS) | T19: PENALIZ. PROGRAM. | U19: REDUCC. PROGRAM. | V19: PENALIZACIÓN FORZADA Por Salida hs. Restantes | X19: REDUCC. FORZADA Por Salida hs. Restantes | Z19: RESTANTE FORZADA | AA19: REDUCC. RESTANTE | AB19: Informó enTérm. | AC19: TOTAL PENALIZAC.
C22: 16 | D22: 301942 | E22: 752 | F22: BARRANQUERAS | G22: TRAFO 7 | H22: 30 | I22: 132/33/13,2 | J22: =H22*'T-05 (2)'!$I$16 -> 37.05 | K22: 2016-05-01 | L22: 2016-05-19T08:48:00 | M22: =IF(F22="","",(L22-K22)*24) -> 440.8 | N22: =IF(F22="","",ROUND((L22-K22)*24*60,0)) -> 26448 | O22: RP | P22: =IF(F22="","",IF(OR(O22="P",O22="RP"),"--","NO")) -> -- | Q22: 50 | R22: NO | S22: ='T-05 (2)'!$I$17*IF(OR(O22="P",O22="RP"),0.1,1)*IF(R22="SI",1,0.1) -> 0.6 | T22: =IF(O22="P",J22*S22*ROUND(N22/60,2),"--") -> -- | U22: =IF(O22="RP",J22*S22*ROUND(N22/60,2)*Q22/100,"--") -> 4899.492 | V22: =IF(AND(O22="F",P22="NO"),J22*S22,"--") -> -- | W22: =IF(O22="F",J22*S22*ROUND(N22/60,2),"--") -> -- | X22: =IF(AND(O22="R",P22="NO"),J22*S22*Q22/100,"--") -> -- | Y22: =IF(O22="R",J22*S22*ROUND(N22/60,2)*Q22/100,"--") -> -- | Z22: =IF(O22="RF",J22*S22*ROUND(N22/60,2),"--") -> -- | AA22: =IF(O22="RR",J22*S22*ROUND(N22/60,2)*Q22/100,"--") -> -- | AB22: SI | AC22: =IF(F22="","",SUM(T22:AA22)*IF(AB22="SI",1,2)) -> 4899.492
C23: 17 | D23: 302270 | E23: 4263 | F23: BELLA VISTA | G23: TRAFO 3 | H23: 7.5 | I23: 132/33/13,2 | J23: =H23*$I$16 -> 9.2625 | K23: 2016-05-03T01:17:00 | L23: 2016-05-03T01:45:00 | M23: =IF(F23="","",(L23-K23)*24) -> 0.4666666666 | N23: =IF(F23="","",ROUND((L23-K23)*24*60,0)) -> 28 | O23: R | P23: =IF(F23="","",IF(OR(O23="P",O23="RP"),"--","NO")) -> NO | Q23: 60 | R23: SI | S23: =$I$17*IF(OR(O23="P",O23="RP"),0.1,1)*IF(R23="SI",1,0.1) -> 60 | T23: =IF(O23="P",J23*S23*ROUND(N23/60,2),"--") -> -- | U23: =IF(O23="RP",J23*S23*ROUND(N23/60,2)*Q23/100,"--") -> -- | V23: =IF(AND(O23="F",P23="NO"),J23*S23,"--") -> -- | W23: =IF(O23="F",J23*S23*ROUND(N23/60,2),"--") -> -- | X23: =IF(AND(O23="R",P23="NO"),J23*S23*Q23/100,"--") -> 333.45 | Y23: =IF(O23="R",J23*S23*ROUND(N23/60,2)*Q23/100,"--") -> 156.7215 | Z23: =IF(O23="RF",J23*S23*ROUND(N23/60,2),"--") -> -- | AA23: =IF(O23="RR",J23*S23*ROUND(N23/60,2)*Q23/100,"--") -> -- | AB23: SI | AC23: =IF(F23="","",SUM(T23:AA23)*IF(AB23="SI",1,2)) -> 490.1715
C24: 18 | D24: 302271 | E24: 4730 | F24: BELLA VISTA | G24: TRAFO 4 | H24: 15 | I24: 132/33/13,2 | J24: =H24*$I$16 -> 18.525 | K24: 2016-05-03T01:17:00 | L24: 2016-05-03T02:10:00 | M24: =IF(F24="","",(L24-K24)*24) -> 0.8833333334 | N24: =IF(F24="","",ROUND((L24-K24)*24*60,0)) -> 53 | O24: F | P24: =IF(F24="","",IF(OR(O24="P",O24="RP"),"--","NO")) -> NO | Q24: 0,000 | R24: SI | S24: =$I$17*IF(OR(O24="P",O24="RP"),0.1,1)*IF(R24="SI",1,0.1) -> 60 | T24: =IF(O24="P",J24*S24*ROUND(N24/60,2),"--") -> -- | U24: =IF(O24="RP",J24*S24*ROUND(N24/60,2)*Q24/100,"--") -> -- | V24: =IF(AND(O24="F",P24="NO"),J24*S24,"--") -> 1111.5 | W24: =IF(O24="F",J24*S24*ROUND(N24/60,2),"--") -> 978.12 | X24: -- | Y24: -- | Z24: =IF(O24="RF",J24*S24*ROUND(N24/60,2),"--") -> -- | AA24: =IF(O24="RR",J24*S24*ROUND(N24/60,2)*Q24/100,"--") -> -- | AB24: SI | AC24: 2089.62
C25: 19 | D25: 302279 | E25: 774 | F25: BARRANQUERAS | G25: MTR02 | H25: 20 | I25: 33/13,2 | J25: =H25*$I$16 -> 24.7 | K25: 2016-05-03T08:15:00 | L25: 2016-05-06T14:40:00 | M25: =IF(F25="","",(L25-K25)*24) -> 78.41666667 | N25: =IF(F25="","",ROUND((L25-K25)*24*60,0)) -> 4705 | O25: P | P25: -- | Q25: 0,000 | R25: NO | S25: =$I$17*IF(OR(O25="P",O25="RP"),0.1,1)*IF(R25="SI",1,0.1) -> 0.6 | T25: =IF(O25="P",J25*S25*ROUND(N25/60,2),"--") -> 1162.1844 | U25: =IF(O25="RP",J25*S25*ROUND(N25/60,2)*Q25/100,"--") -> -- | V25: =IF(AND(O25="F",P25="NO"),J25*S25,"--") -> -- | W25: =IF(O25="F",J25*S25*ROUND(N25/60,2),"--") -> -- | X25: -- | Y25: -- | Z25: =IF(O25="RF",J25*S25*ROUND(N25/60,2),"--") -> -- | AA25: =IF(O25="RR",J25*S25*ROUND(N25/60,2)*Q25/100,"--") -> -- | AB25: SI | AC25: 1162.1844
C26: 20 | D26: 302280 | E26: 4611 | F26: FORMOSA | G26: TRAFO 5 | H26: 30 | I26: 132/33/13,2 | J26: 37.05 | K26: 2016-05-04T07:34:00 | L26: 2016-05-04T10:13:00 | M26: 2.65 | N26: 159 | O26: RP | P26: -- | Q26: 50 | R26: NO | S26: 0.3 | T26: =IF(O26="P",J26*S26*ROUND(N26/60,2),"--") -> -- | U26: 14.727375 | V26: -- | W26: -- | X26: -- | Y26: -- | Z26: -- | AA26: -- | AB26: SI | AC26: 14.727375
C27: 21 | D27: 302282 | E27: 765 | F27: FORMOSA | G27: TRAFO 2 | H27: 15 | I27: 132/33/13,2 | J27: 18.525 | K27: 2016-05-05T07:35:00 | L27: 2016-05-05T12:27:00 | M27: 4.866666667 | N27: 292 | O27: P | P27: -- | Q27: 0,000 | R27: NO | S27: 0.3 | T27: 27.065025 | U27: -- | V27: -- | W27: -- | X27: =IF(AND(O27="R",P27="NO"),J27*S27*Q27/100,"--") -> -- | Y27: =IF(O27="R",J27*S27*ROUND(N27/60,2)*Q27/100,"--") -> -- | Z27: -- | AA27: -- | AB27: SI | AC27: =IF(F27="","",SUM(T27:AA27)*IF(AB27="SI",1,2)) -> 27.065025
C28: 22 | D28: 302586 | E28: 774 | F28: BARRANQUERAS | G28: MTR01 | H28: 20 | I28: 33/13,2 | J28: 24.7 | K28: 2016-05-10T09:24:00 | L28: 2016-05-10T12:38:00 | M28: 3.233333333 | N28: 194 | O28: P | P28: -- | Q28: 0,000 | R28: NO | S28: 1.3 | T28: =IF(O28="P",J28*S28*ROUND(N28/60,2),"--") -> 103.7153 | U28: -- | V28: -- | W28: -- | X28: =IF(AND(O28="R",P28="NO"),J28*S28*Q28/100,"--") -> -- | Y28: =IF(O28="R",J28*S28*ROUND(N28/60,2)*Q28/100,"--") -> -- | Z28: -- | AA28: -- | AB28: SI | AC28: =IF(F28="","",SUM(T28:AA28)*IF(AB28="SI",1,2)) -> 103.7153
C29: 23 | D29: 302613 | E29: 770 | F29: RESIST. NORTE | G29: TRAFO 1 | H29: 30 | I29: 132/33/13,2 | J29: 37.05 | K29: 2016-05-15T18:47:00 | L29: 2016-05-15T19:27:00 | M29: 0.6666666667 | N29: 40 | O29: R | P29: NO | Q29: 40 | R29: SI | S29: 0.3 | T29: -- | U29: -- | V29: -- | W29: -- | X29: 4.446 | Y29: 2.97882 | Z29: -- | AA29: -- | AB29: SI | AC29: =IF(F29="","",SUM(T29:AA29)*IF(AB29="SI",1,2)) -> 7.42482
C30: 24 | D30: 302891 | E30: 3305 | F30: FORMOSA | G30: TRAFO 1 | H30: 30 | I30: 132/33/13,2 | J30: 37.05 | K30: 2016-05-16T07:35:00 | L30: 2016-05-16T11:29:00 | M30: 3.9 | N30: 234 | O30: P | P30: -- | Q30: 0,000 | R30: NO | S30: 0.6 | T30: 86.697 | U30: -- | V30: -- | W30: -- | X30: -- | Y30: -- | Z30: -- | AA30: -- | AB30: SI | AC30: 86.697
C31: 25 | D31: 302892 | E31: 764 | F31: FORMOSA | G31: TRAFO 3 | H31: 30 | I31: 132/33/13,2 | J31: 37.05 | K31: 2016-05-17T07:34:00 | L31: 2016-05-17T12:17:00 | M31: 4.716666667 | N31: 283 | O31: P | P31: -- | Q31: 0,000 | R31: NO | S31: 0.6 | T31: 104.9256 | U31: -- | V31: -- | W31: -- | X31: -- | Y31: -- | Z31: -- | AA31: -- | AB31: SI | AC31: 104.9256
C32: 26 | D32: 302897 | E32: 750 | F32: BARRANQUERAS | G32: TRAFO 4 | H32: 15 | I32: 132/33/13.2 | J32: 18.525 | K32: 2016-05-19T08:47:00 | L32: 2016-05-19T11:46:00 | M32: 2.983333333 | N32: 179 | O32: RP | P32: -- | Q32: 60 | R32: NO | S32: =$I$17*IF(OR(O32="P",O32="RP"),0.1,1)*IF(R32="SI",1,0.1) -> 0.6 | T32: =IF(O32="P",J32*S32*ROUND(N32/60,2),"--") -> -- | U32: =IF(O32="RP",J32*S32*ROUND(N32/60,2)*Q32/100,"--") -> 19.87362 | V32: =IF(AND(O32="F",P32="NO"),J32*S32,"--") -> -- | W32: =IF(O32="F",J32*S32*ROUND(N32/60,2),"--") -> -- | X32: =IF(AND(O32="R",P32="NO"),J32*S32*Q32/100,"--") -> -- | Y32: =IF(O32="R",J32*S32*ROUND(N32/60,2)*Q32/100,"--") -> -- | Z32: =IF(O32="RF",J32*S32*ROUND(N32/60,2),"--") -> -- | AA32: =IF(O32="RR",J32*S32*ROUND(N32/60,2)*Q32/100,"--") -> -- | AB32: SI | AC32: 19.87362
C33: 27 | D33: 302898 | E33: 2662 | F33: BARRANQUERAS | G33: TRAFO 5 | H33: 15 | I33: 132/33/13,2 | J33: 18.525 | K33: 2016-05-19T08:49:00 | L33: 2016-05-19T11:46:00 | M33: 2.95 | N33: 177 | O33: RP | P33: -- | Q33: 60 | R33: NO | S33: 0.6 | T33: -- | U33: 19.67355 | V33: -- | W33: -- | X33: -- | Y33: -- | Z33: -- | AA33: -- | AB33: SI | AC33: 19.67355
C34: 28 | D34: 302899 | E34: 752 | F34: BARRANQUERAS | G34: TRAFO 7 | H34: 30 | I34: 132/33/13,2 | J34: 37.05 | K34: 2016-05-19T08:49:00 | L34: 2016-05-19T11:46:00 | M34: 2.95 | N34: 177 | O34: RP | P34: -- | Q34: 70 | R34: NO | S34: 0.6 | T34: -- | U34: 45.90495 | V34: -- | W34: -- | X34: -- | Y34: -- | Z34: -- | AA34: -- | AB34: SI | AC34: 45.90495
C35: 29 | D35: 302900 | E35: 753 | F35: BARRANQUERAS | G35: TRAFO 8 | H35: 30 | I35: 132/33/13,2 | J35: 37.05 | K35: 2016-05-19T08:49:00 | L35: 2016-05-19T11:46:00 | M35: 2.95 | N35: 177 | O35: RP | P35: -- | Q35: 60 | R35: NO | S35: 0.6 | T35: -- | U35: 39.3471 | V35: -- | W35: -- | X35: -- | Y35: -- | Z35: -- | AA35: -- | AB35: SI | AC35: 39.3471
C36: 30 | D36: 302902 | E36: 774 | F36: BARRANQUERAS | G36: MTR02 | H36: 20 | I36: 33/13,2 | J36: 24.7 | K36: 2016-05-19T07:17:00 | L36: 2016-05-19T13:52:00 | M36: 6.583333333 | N36: 395 | O36: P | P36: -- | Q36: 0,000 | R36: NO | S36: 0.6 | T36: 97.5156 | U36: -- | V36: -- | W36: -- | X36: -- | Y36: -- | Z36: -- | AA36: -- | AB36: SI | AC36: 97.5156
C37: 31 | D37: 302901 | E37: 754 | F37: BARRANQUERAS | G37: MTR01 | H37: 20 | I37: 33/13,2 | J37: 24.7 | K37: 2016-05-19T08:41:00 | L37: 2016-05-19T13:50:00 | M37: 5.15 | N37: 309 | O37: P | P37: -- | Q37: 0,000 | R37: NO | S37: 0.6 | T37: 76.323 | U37: -- | V37: -- | W37: -- | X37: -- | Y37: -- | Z37: -- | AA37: -- | AB37: SI | AC37: 76.323
C38: 32 | D38: 302910 | E38: 1336 | F38: FORMOSA | G38: TRAFO 4 | H38: 30 | I38: 132/33/13.2 | J38: 37.05 | K38: 2016-05-20T07:32:00 | L38: 2016-05-20T11:43:00 | M38: 4.183333333 | N38: 251 | O38: P | P38: -- | Q38: 0,000 | R38: NO | S38: 0.6 | T38: 92.9214 | U38: -- | V38: -- | W38: -- | X38: -- | Y38: -- | Z38: -- | AA38: -- | AB38: SI | AC38: 92.9214
C39: 33 | D39: 302911 | E39: 4611 | F39: FORMOSA | G39: TRAFO 5 | H39: 30 | I39: 132/33/13,2 | J39: 37.05 | K39: 2016-05-20T07:32:00 | L39: 2016-05-20T11:43:00 | M39: 4.183333333 | N39: 251 | O39: P | P39: -- | Q39: 0,000 | R39: NO | S39: 0.6 | T39: 92.9214 | U39: -- | V39: -- | W39: -- | X39: -- | Y39: -- | Z39: -- | AA39: -- | AB39: SI | AC39: 92.9214
C40: 34 | D40: 302913 | E40: 752 | F40: BARRANQUERAS | G40: TRAFO 7 | H40: 30 | I40: 132/33/13,2 | J40: 37.05 | K40: 2016-05-19T11:47:00 | L40: 2016-05-31T23:59:00 | M40: 300.2 | N40: 18012 | O40: RP | P40: -- | Q40: 50 | R40: NO | S40: 0.6 | T40: -- | U40: 3336.723 | V40: -- | W40: -- | X40: -- | Y40: -- | Z40: -- | AA40: -- | AB40: SI | AC40: 3336.723
C41: 35 | D41: 303095 | E41: 774 | F41: BARRANQUERAS | G41: MTR02 | H41: 20 | I41: 33/13,2 | J41: 24.7 | K41: 2016-05-24T07:23:00 | L41: 2016-05-24T13:10:00 | M41: 5.783333333 | N41: 347 | O41: P | P41: -- | Q41: 0,000 | R41: NO | S41: 0.6 | T41: 85.6596 | U41: -- | V41: -- | W41: -- | X41: -- | Y41: -- | Z41: -- | AA41: -- | AB41: SI | AC41: 85.6596
C42: 36 | D42: 303110 | E42: 769 | F42: MTE. CASEROS | G42: TRAFO 1 | H42: 15 | I42: 132/33/13,2 | J42: 18.525 | K42: 2016-05-27T14:54:00 | L42: 2016-05-27T15:13:00 | M42: 0.3166666667 | N42: 19 | O42: R | P42: NO | Q42: 40 | R42: SI | S42: 60 | T42: =IF(O42="P",J42*S42*ROUND(N42/60,2),"--") -> -- | U42: =IF(O42="RP",J42*S42*ROUND(N42/60,2)*Q42/100,"--") -> -- | V42: =IF(AND(O42="F",P42="NO"),J42*S42,"--") -> -- | W42: =IF(O42="F",J42*S42*ROUND(N42/60,2),"--") -> -- | X42: =IF(AND(O42="R",P42="NO"),J42*S42*Q42/100,"--") -> 444.6 | Y42: =IF(O42="R",J42*S42*ROUND(N42/60,2)*Q42/100,"--") -> 142.272 | Z42: =IF(O42="RF",J42*S42*ROUND(N42/60,2),"--") -> -- | AA42: =IF(O42="RR",J42*S42*ROUND(N42/60,2)*Q42/100,"--") -> -- | AB42: SI | AC42: 586.872
C43: 37 | D43: 303245 | E43: 754 | F43: BARRANQUERAS | G43: MTR01 | H43: 20 | I43: 33/13,2 | J43: 24.7 | K43: 2016-05-31T07:35:00 | L43: 2016-05-31T23:59:00 | M43: 16.4 | N43: 984 | O43: P | P43: -- | Q43: 0,000 | R43: NO | S43: 0.6 | T43: 243.048 | U43: -- | V43: -- | W43: -- | X43: -- | Y43: -- | Z43: -- | AA43: -- | AB43: SI | AC43: 243.048
C45: (²) | D45: F - FORZADA ; RP - REDUCCIÓN PROGRAMADA ; R - REDUCCIÓN FORZADA | T45: =SUM(T20:T44) -> 2172.976325 | U45: 8375.741595 | V45: 1111.5 | W45: 978.12 | X45: 782.496 | Y45: 301.97232 | Z45: 0 | AA45: 0 | AC45: =ROUND(SUM(AC20:AC44),2) -> 13722.81

Sheet T-05 (2)
B2: =+'TOT-0516'!B2 -> ANEXO V al Memorandum D.T.E.E. N° 294 / 2017
A4: ENTE NACIONAL REGULADOR
A5: DE LA ELECTRICIDAD
F8: SISTEMA DE TRANSPORTE DE ENERGÍA ELÉCTRICA POR DISTRIBUCIÓN TRONCAL - TRANSNEA S.A.
F10: 2.- CONEXIÓN
F12: 2.1.- Transformación
B14: =+'TOT-0516'!B14 -> Desde el 01 al 31 de mayo de 2016
F16: Por Transformador [$ / h - MVA] = | I16: 1.235
F17: Coeficiente de penalización por salida forzada = | I17: =30*'TOT-0516'!B13 -> 60 | K17: =IF(I17=30," ",IF(I17=60," Coeficiente duplicado por tasa de falla >4 Sal. x año/100 km."," REVISAR COEFICIENTE")) -> Coeficiente duplicado por tasa de falla >4 Sal. x año/100 km.
C18: 3 | D18: 4 | E18: 5 | F18: 6 | G18: 7 | H18: 8 | I18: 9 | J18: 10 | K18: 11 | L18: 12 | M18: 13 | N18: 14 | O18: 15 | P18: 16 | Q18: 17 | R18: 18 | S18: 19 | T18: 20 | U18: 21 | V18: 22 | W18: 23 | X18: 24 | Y18: 25 | Z18: 26 | AA18: 27 | AB18: 28 | AC18: 29
C19: N° | D19: INDISP | E19: ID EQUIPO | F19: ESTACIÓN TRANSFORMADORA | G19: EQUIPO | H19: POT. [MVA] | I19: U [kV] | J19: $/h | K19: Salida | L19: Entrada | M19: Hs. Indisp. | N19: Mtos. Indisp. | O19: Tipo Sal.(²) | P19: AUT. | Q19: C.R. % | R19: E.N.S. | S19: K (P;ENS) | T19: PENALIZ. PROGRAM. | U19: REDUCC. PROGRAM. | V19: PENALIZACIÓN FORZADA Por Salida hs. Restantes | X19: REDUCC. FORZADA Por Salida hs. Restantes | Z19: RESTANTE FORZADA | AA19: REDUCC. RESTANTE | AB19: Informó enTérm. | AC19: TOTAL PENALIZAC.
AC20: ='T-05 (1)'!AC45 -> 13722.81
C22: 38 | D22: 303246 | E22: 773 | F22: CORRIENTES | G22: TRAFO 4 | H22: 50 | I22: 132/33/13,2 | J22: =H22*$I$16 -> 61.75 | K22: 2016-05-31T09:15:00 | L22: 2016-05-31T12:23:00 | M22: =IF(F22="","",(L22-K22)*24) -> 3.133333333 | N22: =IF(F22="","",ROUND((L22-K22)*24*60,0)) -> 188 | O22: RP | P22: =IF(F22="","",IF(OR(O22="P",O22="RP"),"--","NO")) -> -- | Q22: 40 | R22: NO | S22: =$I$17*IF(OR(O22="P",O22="RP"),0.1,1)*IF(R22="SI",1,0.1) -> 0.6 | T22: =IF(O22="P",J22*S22*ROUND(N22/60,2),"--") -> -- | U22: =IF(O22="RP",J22*S22*ROUND(N22/60,2)*Q22/100,"--") -> 46.3866 | V22: =IF(AND(O22="F",P22="NO"),J22*S22,"--") -> -- | W22: =IF(O22="F",J22*S22*ROUND(N22/60,2),"--") -> -- | X22: =IF(AND(O22="R",P22="NO"),J22*S22*Q22/100,"--") -> -- | Y22: =IF(O22="R",J22*S22*ROUND(N22/60,2)*Q22/100,"--") -> -- | Z22: =IF(O22="RF",J22*S22*ROUND(N22/60,2),"--") -> -- | AA22: =IF(O22="RR",J22*S22*ROUND(N22/60,2)*Q22/100,"--") -> -- | AB22: SI | AC22: =IF(F22="","",SUM(T22:AA22)*IF(AB22="SI",1,2)) -> 46.3866
C23: 39 | D23: 303247 | E23: 4719 | F23: FORMOSA | G23: TRAFO 1 | H23: 30 | I23: 132/33/13,2 | J23: =H23*$I$16 -> 37.05 | K23: 2016-05-31T09:15:00 | L23: 2016-05-31T12:23:00 | M23: =IF(F23="","",(L23-K23)*24) -> 3.133333333 | N23: =IF(F23="","",ROUND((L23-K23)*24*60,0)) -> 188 | O23: RP | P23: =IF(F23="","",IF(OR(O23="P",O23="RP"),"--","NO")) -> -- | Q23: 50 | R23: NO | S23: =$I$17*IF(OR(O23="P",O23="RP"),0.1,1)*IF(R23="SI",1,0.1) -> 0.6 | T23: =IF(O23="P",J23*S23*ROUND(N23/60,2),"--") -> -- | U23: =IF(O23="RP",J23*S23*ROUND(N23/60,2)*Q23/100,"--") -> 34.78995 | V23: =IF(AND(O23="F",P23="NO"),J23*S23,"--") -> -- | W23: =IF(O23="F",J23*S23*ROUND(N23/60,2),"--") -> -- | X23: =IF(AND(O23="R",P23="NO"),J23*S23*Q23/100,"--") -> -- | Y23: =IF(O23="R",J23*S23*ROUND(N23/60,2)*Q23/100,"--") -> -- | Z23: =IF(O23="RF",J23*S23*ROUND(N23/60,2),"--") -> -- | AA23: =IF(O23="RR",J23*S23*ROUND(N23/60,2)*Q23/100,"--") -> -- | AB23: SI | AC23: =IF(F23="","",SUM(T23:AA23)*IF(AB23="SI",1,2)) -> 34.78995
J24: =H24*$I$16 -> 0 | M24: =IF(F24="","",(L24-K24)*24) ->  | N24: =IF(F24="","",ROUND((L24-K24)*24*60,0)) ->  | P24: =IF(F24="","",IF(OR(O24="P",O24="RP"),"--","NO")) ->  | S24: =$I$17*IF(OR(O24="P",O24="RP"),0.1,1)*IF(R24="SI",1,0.1) -> 6 | T24: =IF(O24="P",J24*S24*ROUND(N24/60,2),"--") -> -- | U24: =IF(O24="RP",J24*S24*ROUND(N24/60,2)*Q24/100,"--") -> -- | V24: =IF(AND(O24="F",P24="NO"),J24*S24,"--") -> -- | W24: =IF(O24="F",J24*S24*ROUND(N24/60,2),"--") -> -- | X24: =IF(AND(O24="R",P24="NO"),J24*S24*Q24/100,"--") -> -- | Y24: =IF(O24="R",J24*S24*ROUND(N24/60,2)*Q24/100,"--") -> -- | Z24: =IF(O24="RF",J24*S24*ROUND(N24/60,2),"--") -> -- | AA24: =IF(O24="RR",J24*S24*ROUND(N24/60,2)*Q24/100,"--") -> -- | AB24: =IF(F24="","","SI") ->  | AC24: =IF(F24="","",SUM(T24:AA24)*IF(AB24="SI",1,2)) -> 
J25: 0 | S25: 6 | T25: -- | U25: -- | V25: -- | W25: -- | X25: -- | Y25: -- | Z25: -- | AA25: --
J26: 0 | S26: 6 | T26: -- | U26: -- | V26: -- | W26: -- | X26: -- | Y26: -- | Z26: -- | AA26: --
J27: 0 | S27: 6 | T27: -- | U27: -- | V27: -- | W27: -- | X27: -- | Y27: -- | Z27: -- | AA27: --
J28: 0 | S28: 6 | T28: -- | U28: -- | V28: -- | W28: -- | X28: -- | Y28: -- | Z28: -- | AA28: --
J29: 0 | S29: 6 | T29: -- | U29: -- | V29: -- | W29: -- | X29: -- | Y29: -- | Z29: -- | AA29: --
J30: 0 | S30: 6 | T30: -- | U30: -- | V30: -- | W30: -- | X30: -- | Y30: -- | Z30: -- | AA30: --
J31: =H31*$I$16 -> 0 | M31: =IF(F31="","",(L31-K31)*24) ->  | N31: =IF(F31="","",ROUND((L31-K31)*24*60,0)) ->  | P31: =IF(F31="","",IF(OR(O31="P",O31="RP"),"--","NO")) ->  | S31: =$I$17*IF(OR(O31="P",O31="RP"),0.1,1)*IF(R31="SI",1,0.1) -> 6 | T31: =IF(O31="P",J31*S31*ROUND(N31/60,2),"--") -> -- | U31: =IF(O31="RP",J31*S31*ROUND(N31/60,2)*Q31/100,"--") -> -- | V31: =IF(AND(O31="F",P31="NO"),J31*S31,"--") -> -- | W31: =IF(O31="F",J31*S31*ROUND(N31/60,2),"--") -> -- | X31: =IF(AND(O31="R",P31="NO"),J31*S31*Q31/100,"--") -> -- | Y31: =IF(O31="R",J31*S31*ROUND(N31/60,2)*Q31/100,"--") -> -- | Z31: =IF(O31="RF",J31*S31*ROUND(N31/60,2),"--") -> -- | AA31: =IF(O31="RR",J31*S31*ROUND(N31/60,2)*Q31/100,"--") -> -- | AB31: =IF(F31="","","SI") ->  | AC31: =IF(F31="","",SUM(T31:AA31)*IF(AB31="SI",1,2)) -> 
J32: 0 | S32: 6 | T32: -- | U32: -- | V32: -- | W32: -- | X32: -- | Y32: -- | Z32: -- | AA32: --
J33: 0 | S33: 6 | T33: -- | U33: -- | V33: -- | W33: -- | X33: -- | Y33: -- | Z33: -- | AA33: --
J34: 0 | S34: 6 | T34: -- | U34: -- | V34: -- | W34: -- | X34: -- | Y34: -- | Z34: -- | AA34: --
J35: 0 | S35: 6 | T35: -- | U35: -- | V35: -- | W35: -- | X35: -- | Y35: -- | Z35: -- | AA35: --
J36: 0 | S36: 6 | T36: -- | U36: -- | V36: -- | W36: -- | X36: -- | Y36: -- | Z36: -- | AA36: --
J37: 0 | P37: =IF(F37="","",IF(OR(O37="P",O37="RP"),"--","NO")) ->  | S37: 6 | T37: -- | U37: -- | V37: -- | W37: -- | X37: -- | Y37: -- | Z37: -- | AA37: --
J38: 0 | S38: =$I$17*IF(OR(O38="P",O38="RP"),0.1,1)*IF(R38="SI",1,0.1) -> 6 | T38: =IF(O38="P",J38*S38*ROUND(N38/60,2),"--") -> -- | U38: =IF(O38="RP",J38*S38*ROUND(N38/60,2)*Q38/100,"--") -> -- | V38: =IF(AND(O38="F",P38="NO"),J38*S38,"--") -> -- | W38: =IF(O38="F",J38*S38*ROUND(N38/60,2),"--") -> -- | X38: =IF(AND(O38="R",P38="NO"),J38*S38*Q38/100,"--") -> -- | Y38: =IF(O38="R",J38*S38*ROUND(N38/60,2)*Q38/100,"--") -> -- | Z38: =IF(O38="RF",J38*S38*ROUND(N38/60,2),"--") -> -- | AA38: =IF(O38="RR",J38*S38*ROUND(N38/60,2)*Q38/100,"--") -> -- | AB38: =IF(F38="","","SI") -> 
J39: 0 | S39: 6 | T39: -- | U39: -- | V39: -- | W39: -- | X39: -- | Y39: -- | Z39: -- | AA39: --
J40: 0 | S40: 6 | T40: -- | U40: -- | V40: -- | W40: -- | X40: -- | Y40: -- | Z40: -- | AA40: --
J41: 0 | S41: =$I$17*IF(OR(O41="P",O41="RP"),0.1,1)*IF(R41="SI",1,0.1) -> 6 | T41: =IF(O41="P",J41*S41*ROUND(N41/60,2),"--") -> -- | U41: =IF(O41="RP",J41*S41*ROUND(N41/60,2)*Q41/100,"--") -> -- | V41: =IF(AND(O41="F",P41="NO"),J41*S41,"--") -> -- | W41: =IF(O41="F",J41*S41*ROUND(N41/60,2),"--") -> -- | X41: =IF(AND(O41="R",P41="NO"),J41*S41*Q41/100,"--") -> -- | Y41: =IF(O41="R",J41*S41*ROUND(N41/60,2)*Q41/100,"--") -> -- | Z41: =IF(O41="RF",J41*S41*ROUND(N41/60,2),"--") -> -- | AA41: =IF(O41="RR",J41*S41*ROUND(N41/60,2)*Q41/100,"--") -> -- | AB41: =IF(F41="","","SI") -> 
C43: (²) | D43: F - FORZADA ; RP - REDUCCIÓN PROGRAMADA ; R - REDUCCIÓN FORZADA | T43: =SUM(T20:T42) -> 0 | U43: 81.17655 | V43: 0 | W43: 0 | X43: 0 | Y43: 0 | Z43: 0 | AA43: 0 | AC43: =ROUND(SUM(AC20:AC42),2) -> 13803.99

Sheet SA-05 (1)
B2: ='TOT-0516'!B2 -> ANEXO V al Memorandum D.T.E.E. N° 294 / 2017
A4: ENTE NACIONAL REGULADOR
A5: DE LA ELECTRICIDAD
F8: SISTEMA DE TRANSPORTE DE ENERGÍA ELÉCTRICA POR DISTRIBUCIÓN TRONCAL - TRANSNEA S.A.
F10: 2.2.- Salidas
B12: ='TOT-0516'!B14 -> Desde el 01 al 31 de mayo de 2016
F14: Salida en 220 kV | G14: - | H14: =60*'TOT-0516'!B13 -> 120 | J14: =IF(H14=60," ",IF(H14=120," Coeficiente duplicado por tasa de falla >4 Sal. x año/100 km."," REVISAR COEFICIENTE")) -> Coeficiente duplicado por tasa de falla >4 Sal. x año/100 km.
F15: Salida en 132 kV = | G15: 16.043 | H15: =50*'TOT-0516'!B13 -> 100 | J15: =IF(H15=50," ",IF(H15=100," Coeficiente duplicado por tasa de falla >4 Sal. x año/100 km."," REVISAR COEFICIENTE")) -> Coeficiente duplicado por tasa de falla >4 Sal. x año/100 km.
F16: Salida en 33 kV | G16: 12.029 | H16: =25*'TOT-0516'!B13 -> 50 | J16: =IF(H16=25," ",IF(H16=50," Coeficiente duplicado por tasa de falla >4 Sal. x año/100 km."," REVISAR COEFICIENTE")) -> Coeficiente duplicado por tasa de falla >4 Sal. x año/100 km.
F17: Salida en 13,2 kV = | G17: 12.029 | H17: =20*'TOT-0516'!B13 -> 40 | J17: =IF(H17=20," ",IF(H17=40," Coeficiente duplicado por tasa de falla >4 Sal. x año/100 km."," REVISAR COEFICIENTE")) -> Coeficiente duplicado por tasa de falla >4 Sal. x año/100 km.
C18: 3 | D18: 4 | E18: 5 | F18: 6 | G18: 7 | H18: 8 | I18: 9 | J18: 10 | K18: 11 | L18: 12 | M18: 13 | N18: 14 | O18: 15 | P18: 16 | Q18: 17 | R18: 18 | S18: 19 | T18: 20 | U18: 21 | V18: 22
C19: N° | D19: INDISP | E19: ID EQUIPO | F19: ESTACIÓN TRANSFORMADORA | G19: EQUIPO | H19: U [kV] | I19: $/h | J19: Salida | K19: Entrada | L19: Hs. Indisp. | M19: Mtos. Indisp. | N19: Tipo Sal.(²) | O19: AUT. | P19: K | Q19: PENALIZ. PROGRAM. | R19: PENALIZACIÓN FORZADA Por Salida hs. Restantes | T19: RESTANTE FORZADA | U19: Informó enTérm. | V19: TOTAL PENALIZAC.
C22: 40 | D22: 302618 | E22: 2682 | F22: R.NORTE NUEVA | G22: DISTRIBUIDOR 84 LIBERTAD | H22: 13.2 | I22: =IF(H22=220,$G$14,IF(AND(H22<=132,H22>=66),$G$15,IF(AND(H22<66,H22>=33),$G$16,$G$17))) -> 12.029 | J22: 2016-05-15T18:47:00 | K22: 2016-05-15T19:27:00 | L22: =IF(F22="","",(K22-J22)*24) -> 0.6666666667 | M22: =IF(F22="","",ROUND((K22-J22)*24*60,0)) -> 40 | N22: F | O22: =IF(F22="","",IF(OR(N22="P",N22="RP"),"--","NO")) -> NO | P22: =IF(H22=220,$H$14,IF(AND(H22<=132,H22>=66),$H$15,IF(AND(H22<66,H22>=33),$H$16,$H$17))) -> 40 | Q22: =IF(N22="P",I22*P22*ROUND(M22/60,2)*0.1,"--") -> -- | R22: =IF(AND(N22="F",O22="NO"),I22*P22,"--") -> 481.16 | S22: =IF(N22="F",I22*P22*ROUND(M22/60,2),"--") -> 322.3772 | T22: =IF(N22="RF",I22*P22*ROUND(M22/60,2),"--") -> -- | U22: SI | V22: =IF(F22="","",SUM(Q22:T22)*IF(U22="SI",1,2)*IF(H22="500/220",0,1)) -> 803.5372
C23: 41 | D23: 302903 | E23: 776 | F23: BARRANQUERAS | G23: SALIDA LINEA C. RESIST1 (4) | H23: 33 | I23: =IF(H23=220,$G$14,IF(AND(H23<=132,H23>=66),$G$15,IF(AND(H23<66,H23>=33),$G$16,$G$17))) -> 12.029 | J23: 2016-05-19T08:49:00 | K23: 2016-05-19T11:46:00 | L23: =IF(F23="","",(K23-J23)*24) -> 2.95 | M23: =IF(F23="","",ROUND((K23-J23)*24*60,0)) -> 177 | N23: P | O23: -- | P23: =IF(H23=220,$H$14,IF(AND(H23<=132,H23>=66),$H$15,IF(AND(H23<66,H23>=33),$H$16,$H$17))) -> 50 | Q23: =IF(N23="P",I23*P23*ROUND(M23/60,2)*0.1,"--") -> 177.42775 | R23: =IF(AND(N23="F",O23="NO"),I23*P23,"--") -> -- | S23: =IF(N23="F",I23*P23*ROUND(M23/60,2),"--") -> -- | T23: =IF(N23="RF",I23*P23*ROUND(M23/60,2),"--") -> -- | U23: SI | V23: =IF(F23="","",SUM(Q23:T23)*IF(U23="SI",1,2)*IF(H23="500/220",0,1)) -> 177.42775
C24: 42 | D24: 302904 | E24: 777 | F24: BARRANQUERAS | G24: SALIDA LINEA C. RESIST2 (5) | H24: 33 | I24: 12.029 | J24: 2016-05-19T08:49:00 | K24: 2016-05-19T11:46:00 | L24: 2.95 | M24: 177 | N24: P | O24: -- | P24: 50 | Q24: 177.42775 | R24: -- | S24: -- | T24: -- | U24: =IF(F24="","","SI") -> SI | V24: 177.42775
C25: 43 | D25: 302905 | E25: 778 | F25: BARRANQUERAS | G25: SALIDA LINEA C. RESIST3 (6) | H25: 33 | I25: 12.029 | J25: 2016-05-19T08:49:00 | K25: 2016-05-19T11:46:00 | L25: 2.95 | M25: 177 | N25: P | O25: -- | P25: 50 | Q25: 177.42775 | R25: -- | S25: -- | T25: -- | U25: SI | V25: 177.42775
C26: 44 | D26: 302906 | E26: 4287 | F26: BARRANQUERAS | G26: SALIDA DEFENSA 1 (137) | H26: 33 | I26: 12.029 | J26: 2016-05-19T08:49:00 | K26: 2016-05-19T11:46:00 | L26: 2.95 | M26: 177 | N26: P | O26: -- | P26: 50 | Q26: 177.42775 | R26: -- | S26: -- | T26: -- | U26: SI | V26: 177.42775
C27: 45 | D27: 302907 | E27: 4288 | F27: BARRANQUERAS | G27: SALIDA DEFENSA 2 (138) | H27: 33 | I27: 12.029 | J27: 2016-05-19T08:49:00 | K27: 2016-05-19T11:46:00 | L27: 2.95 | M27: 177 | N27: P | O27: -- | P27: 50 | Q27: 177.42775 | R27: -- | S27: -- | T27: -- | U27: SI | V27: 177.42775
I28: 12.029 | P28: 40 | Q28: -- | R28: -- | S28: -- | T28: --
I29: 12.029 | P29: 40 | Q29: -- | R29: -- | S29: -- | T29: --
I30: 12.029 | P30: 40 | Q30: -- | R30: -- | S30: -- | T30: --
I31: 12.029 | P31: 40 | Q31: -- | R31: -- | S31: -- | T31: --
I32: 12.029 | P32: 40 | Q32: -- | R32: -- | S32: -- | T32: --
I33: 12.029 | P33: 40 | Q33: -- | R33: -- | S33: -- | T33: --
I34: 12.029 | P34: 40 | Q34: -- | R34: -- | S34: -- | T34: --
I35: 12.029 | P35: 40 | Q35: -- | R35: -- | S35: -- | T35: --
I36: 12.029 | P36: 40 | Q36: -- | R36: -- | S36: -- | T36: --
I37: 12.029 | P37: 40 | Q37: -- | R37: -- | S37: -- | T37: --
I38: 12.029 | P38: 40 | Q38: -- | R38: -- | S38: -- | T38: --
I39: =IF(H39=220,$G$14,IF(AND(H39<=132,H39>=66),$G$15,IF(AND(H39<66,H39>=33),$G$16,$G$17))) -> 12.029 | L39: =IF(F39="","",(K39-J39)*24) ->  | M39: =IF(F39="","",ROUND((K39-J39)*24*60,0)) ->  | P39: =IF(H39=220,$H$14,IF(AND(H39<=132,H39>=66),$H$15,IF(AND(H39<66,H39>=33),$H$16,$H$17))) -> 40 | Q39: =IF(N39="P",I39*P39*ROUND(M39/60,2)*0.1,"--") -> -- | R39: =IF(AND(N39="F",O39="NO"),I39*P39,"--") -> -- | S39: =IF(N39="F",I39*P39*ROUND(M39/60,2),"--") -> -- | T39: =IF(N39="RF",I39*P39*ROUND(M39/60,2),"--") -> -- | U39: =IF(F39="","","SI") -> 
I40: =IF(H40=220,$G$14,IF(AND(H40<=132,H40>=66),$G$15,IF(AND(H40<66,H40>=33),$G$16,$G$17))) -> 12.029 | L40: =IF(F40="","",(K40-J40)*24) ->  | M40: =IF(F40="","",ROUND((K40-J40)*24*60,0)) ->  | P40: =IF(H40=220,$H$14,IF(AND(H40<=132,H40>=66),$H$15,IF(AND(H40<66,H40>=33),$H$16,$H$17))) -> 40 | Q40: =IF(N40="P",I40*P40*ROUND(M40/60,2)*0.1,"--") -> -- | R40: =IF(AND(N40="F",O40="NO"),I40*P40,"--") -> -- | S40: =IF(N40="F",I40*P40*ROUND(M40/60,2),"--") -> -- | T40: =IF(N40="RF",I40*P40*ROUND(M40/60,2),"--") -> -- | U40: =IF(F40="","","SI") -> 
I41: =IF(H41=220,$G$14,IF(AND(H41<=132,H41>=66),$G$15,IF(AND(H41<66,H41>=33),$G$16,$G$17))) -> 12.029 | L41: =IF(F41="","",(K41-J41)*24) ->  | M41: =IF(F41="","",ROUND((K41-J41)*24*60,0)) ->  | P41: =IF(H41=220,$H$14,IF(AND(H41<=132,H41>=66),$H$15,IF(AND(H41<66,H41>=33),$H$16,$H$17))) -> 40 | Q41: =IF(N41="P",I41*P41*ROUND(M41/60,2)*0.1,"--") -> -- | R41: =IF(AND(N41="F",O41="NO"),I41*P41,"--") -> -- | S41: =IF(N41="F",I41*P41*ROUND(M41/60,2),"--") -> -- | T41: =IF(N41="RF",I41*P41*ROUND(M41/60,2),"--") -> -- | U41: =IF(F41="","","SI") -> 
C43: (²) | D43: F - FORZADA | Q43: =SUM(Q20:Q42) -> 887.13875 | R43: =SUM(R20:R42) -> 481.16 | S43: =SUM(S20:S42) -> 322.3772 | T43: =SUM(T20:T42) -> 0 | V43: =ROUND(SUM(V20:V42),2) -> 1690.68

Sheet SUP-DPEC
B2: ='TOT-0516'!B2 -> ANEXO V al Memorandum D.T.E.E. N° 294 / 2017
A4: ENTE NACIONAL REGULADOR
A5: DE LA ELECTRICIDAD
D8: SISTEMA DE TRANSPORTE DE ENERGÍA ELÉCTRICA POR DISTRIBUCIÓN TRONCAL - TRANSNEA S.A.
D10: 3.1.-SUPERVISIÓN - Transportista Independiente D.P.E.C.
B12: ='TOT-0516'!B14 -> Desde el 01 al 31 de mayo de 2016
C16: a) Datos
K17: K
D18: Tiempo de servicio = | E18: =MID(B12,16,2)*24 -> 744 | F18: hs | H18: $/100 km-h : LÍNEAS 220 kV | J18: - | K18: =30*'TOT-0516'!B13 -> 60
D19: Porcentaje por Supervisión = | E19: 0.025 | H19: $/100 km-h : LÍNEAS 132 kV | J19: 345.493 | M19: RM por Transformador = | Y19: - | Z19: $/h-MVA
H20: $/100 km-h : LÍNEAS 66 kV | J20: - | M20: RM Salidas 132 kV = | Y20: 16.043 | Z20: $/hs.
C22: b) SM: es la suma de las sanciones a que en cada mes se hiciere pasible el Transportista Independiente, valorizadas con idénticos criterios que los que se aplican a la Concesionaria.
C24: N° | D24: LÍNEAS | E24: U [kV] | F24: Long. [km] | G24: $/h | H24: Salida | I24: Entrada | J24: Hs. Indisp. | K24: Minutos Indisp. | L24: Tipo Sal.(²) | M24: C.R. % | N24: PENALIZAC. PROGRAM. | O24: REDUCC. PROGRAM. | P24: PENALIZACIÓN FORZADA Por Salida 1ras. 3 hs. hs. Restantes | S24: REDUCC. FORZADA Por Salida 1ras. 3 hs. hs. Restantes | V24: RESTANTE FORZADA | W24: REDUCC. RESTANTE | X24: Informó enTérm. | Y24: TOTAL PENALIZAC.
C26: I | D26: PASO DE LOS LIBRES - MONTE CASEROS | E26: 132 | F26: 101 | G26: =IF(F26>25,F26,25)*IF(E26=220,$J$18,IF(E26=132,$J$19,$J$20))/100 -> 348.94793 | H26: 2016-05-02T06:23:00 | I26: 2016-05-02T08:15:00 | J26: =IF(D26="","",(I26-H26)*24) -> 1.866666667 | K26: =IF(D26="","",ROUND((I26-H26)*24*60,0)) -> 112 | L26: F | M26: =IF(D26="","","--") -> -- | N26: =IF(L26="P",ROUND(K26/60,2)*G26*$K$18*0.01,"--") -> -- | O26: =IF(L26="RP",ROUND(K26/60,2)*G26*$K$18*0.01*M26/100,"--") -> -- | P26: =IF(L26="F",G26*$K$18,"--") -> 20936.8758 | Q26: =IF(AND(K26>10,L26="F"),G26*$K$18*IF(K26>180,3,ROUND(K26/60,2)),"--") -> 39151.95775 | R26: =IF(AND(L26="F",K26>180),(ROUND(K26/60,2)-3)*G26*$K$18*0.1,"--") -> -- | S26: =IF(L26="R",G26*$K$18*M26/100,"--") -> -- | T26: =IF(AND(K26>10,L26="R"),G26*$K$18*M26/100*IF(K26>180,3,ROUND(K26/60,2)),"--") -> -- | U26: =IF(AND(L26="R",K26>180),(ROUND(K26/60,2)-3)*G26*$K$18*0.1*M26/100,"--") -> -- | V26: =IF(L26="RF",ROUND(K26/60,2)*G26*$K$18*0.1,"--") -> -- | W26: =IF(L26="RR",ROUND(K26/60,2)*G26*$K$18*0.1*M26/100,"--") -> -- | X26: =IF(D26="","","SI") -> SI | Y26: =IF(D26="","",SUM(N26:W26)*IF(X26="SI",1,2)) -> 60088.83355
C27: II | D27: PASO DE LOS LIBRES - MONTE CASEROS | E27: 132 | F27: 101 | G27: =IF(F27>25,F27,25)*IF(E27=220,$J$18,IF(E27=132,$J$19,$J$20))/100 -> 348.94793 | H27: 2016-05-08T07:52:00 | I27: 2016-05-08T08:15:00 | J27: =IF(D27="","",(I27-H27)*24) -> 0.3833333334 | K27: =IF(D27="","",ROUND((I27-H27)*24*60,0)) -> 23 | L27: F | M27: =IF(D27="","","--") -> -- | N27: =IF(L27="P",ROUND(K27/60,2)*G27*$K$18*0.01,"--") -> -- | O27: =IF(L27="RP",ROUND(K27/60,2)*G27*$K$18*0.01*M27/100,"--") -> -- | P27: =IF(L27="F",G27*$K$18,"--") -> 20936.8758 | Q27: =IF(AND(K27>10,L27="F"),G27*$K$18*IF(K27>180,3,ROUND(K27/60,2)),"--") -> 7956.012804 | R27: =IF(AND(L27="F",K27>180),(ROUND(K27/60,2)-3)*G27*$K$18*0.1,"--") -> -- | S27: =IF(L27="R",G27*$K$18*M27/100,"--") -> -- | T27: =IF(AND(K27>10,L27="R"),G27*$K$18*M27/100*IF(K27>180,3,ROUND(K27/60,2)),"--") -> -- | U27: =IF(AND(L27="R",K27>180),(ROUND(K27/60,2)-3)*G27*$K$18*0.1*M27/100,"--") -> -- | V27: =IF(L27="RF",ROUND(K27/60,2)*G27*$K$18*0.1,"--") -> -- | W27: =IF(L27="RR",ROUND(K27/60,2)*G27*$K$18*0.1*M27/100,"--") -> -- | X27: SI | Y27: 28892.8886
C28: III | D28: PASO DE LOS LIBRES - MONTE CASEROS | E28: 132 | F28: 101 | G28: =IF(F28>25,F28,25)*IF(E28=220,$J$18,IF(E28=132,$J$19,$J$20))/100 -> 348.94793 | H28: 2016-05-10T08:02:00 | I28: 2016-05-10T17:50:00 | J28: 9.8 | K28: 588 | L28: P | M28: =IF(D28="","","--") -> -- | N28: =IF(L28="P",ROUND(K28/60,2)*G28*$K$18*0.01,"--") -> 2051.813828 | O28: =IF(L28="RP",ROUND(K28/60,2)*G28*$K$18*0.01*M28/100,"--") -> -- | P28: =IF(L28="F",G28*$K$18,"--") -> -- | Q28: =IF(AND(K28>10,L28="F"),G28*$K$18*IF(K28>180,3,ROUND(K28/60,2)),"--") -> -- | R28: =IF(AND(L28="F",K28>180),(ROUND(K28/60,2)-3)*G28*$K$18*0.1,"--") -> -- | S28: =IF(L28="R",G28*$K$18*M28/100,"--") -> -- | T28: =IF(AND(K28>10,L28="R"),G28*$K$18*M28/100*IF(K28>180,3,ROUND(K28/60,2)),"--") -> -- | U28: =IF(AND(L28="R",K28>180),(ROUND(K28/60,2)-3)*G28*$K$18*0.1*M28/100,"--") -> -- | V28: =IF(L28="RF",ROUND(K28/60,2)*G28*$K$18*0.1,"--") -> -- | W28: =IF(L28="RR",ROUND(K28/60,2)*G28*$K$18*0.1*M28/100,"--") -> -- | X28: =IF(D28="","","SI") -> SI | Y28: =IF(D28="","",SUM(N28:W28)*IF(X28="SI",1,2)) -> 2051.813828
C29: IV | D29: PASO DE LOS LIBRES - MONTE CASEROS | E29: 132 | F29: 101 | G29: 348.94793 | H29: 2016-05-11T07:54:00 | I29: 2016-05-11T17:55:00 | J29: 10.01666667 | K29: 601 | L29: P | M29: -- | N29: 2097.874955 | O29: -- | P29: -- | Q29: -- | R29: -- | S29: -- | T29: -- | U29: -- | V29: -- | W29: -- | X29: SI | Y29: 2097.874955
C30: V | D30: PASO DE LOS LIBRES - MONTE CASEROS | E30: 132 | F30: 101 | G30: 348.94793 | H30: 2016-05-12T08:10:00 | I30: 2016-05-12T20:19:00 | J30: 12.15 | K30: 729 | L30: P | M30: -- | N30: 2543.83041 | O30: -- | P30: -- | Q30: -- | R30: -- | S30: -- | T30: -- | U30: -- | V30: -- | W30: -- | X30: SI | Y30: 2543.83041
C31: VI | D31: PASO DE LOS LIBRES - MONTE CASEROS | E31: 132 | F31: 101 | G31: 348.94793 | H31: 2016-05-13T07:42:00 | I31: 2016-05-13T17:26:00 | J31: 9.733333333 | K31: 584 | L31: P | M31: -- | N31: 2037.158015 | O31: -- | P31: -- | Q31: -- | R31: -- | S31: -- | T31: -- | U31: -- | V31: -- | W31: -- | X31: SI | Y31: 2037.158015
C32: VII | D32: PASO DE LOS LIBRES - MONTE CASEROS | E32: 132 | F32: 101 | G32: 348.94793 | H32: 2016-05-14T08:09:00 | I32: 2016-05-14T17:58:00 | J32: 9.816666667 | K32: 589 | L32: P | M32: -- | N32: 2056.001204 | O32: -- | P32: -- | Q32: -- | R32: -- | S32: -- | T32: -- | U32: -- | V32: -- | W32: -- | X32: SI | Y32: 2056.001204
C33: VIII | D33: PASO DE LOS LIBRES - MONTE CASEROS | E33: 132 | F33: 101 | G33: =IF(F33>25,F33,25)*IF(E33=220,$J$18,IF(E33=132,$J$19,$J$20))/100 -> 348.94793 | H33: 2016-05-19T07:05:00 | I33: 2016-05-21T13:11:00 | J33: 54.1 | K33: 3246 | L33: P | M33: =IF(D33="","","--") -> -- | N33: 11326.84981 | O33: -- | P33: -- | Q33: -- | R33: -- | S33: -- | T33: -- | U33: -- | V33: -- | W33: -- | X33: SI | Y33: 11326.84981
J34: =IF(D34="","",(I34-H34)*24) ->  | K34: =IF(D34="","",ROUND((I34-H34)*24*60,0)) ->  | M34: =IF(D34="","","--") ->  | X34: =IF(D34="","","SI") ->  | Y34: =IF(D34="","",SUM(N34:W34)*IF(X34="SI",1,2)) -> 
Y35: =SUM(Y26:Y34) -> 111095.2504
C37: N° | D37: ESTACIÓN TRANSFORMADORA | E37: EQUIPO | F37: U [kV] | G37: $/h | H37: Salida | I37: Entrada | J37: Hs. Indisp. | K37: Mtos. Indisp. | L37: Tipo Sal.(²) | M37: AUT. | N37: K | O37: PENALIZ. PROGRAM. | P37: PENALIZACIÓN FORZADA Por Salida hs. Restantes | V37: RESTANTE FORZADA | X37: Informó enTérm. | Y37: TOTAL PENALIZAC.
C39: I | G39: =Y20 -> 16.043 | J39: =IF(D39="","",(I39-H39)*24) ->  | K39: =IF(D39="","",ROUND((I39-H39)*24*60,0)) ->  | M39: =IF(D39="","",IF(OR(L39="P",L39="RP"),"--","NO")) ->  | N39: 50 | O39: =IF(L39="P",G39*N39*ROUND(K39/60,2)*0.1,"--") -> -- | P39: =IF(AND(L39="F",M39="NO"),G39*N39,"--") -> -- | Q39: =IF(L39="F",G39*N39*ROUND(K39/60,2),"--") -> -- | V39: =IF(L39="RF",G39*N39*ROUND(K39/60,2),"--") -> -- | X39: =IF(D39="","","SI") ->  | Y39: =IF(D39="","",SUM(O39:V39)*IF(X39="SI",1,2)*IF(F39="500/220",0,1)) -> 
Y41: =SUM(Y39:Y40) -> 0
H42: SM= | I42: =Y35+Y41 -> 111095.2504
C44: c) RM : es la remuneración que mensualmente recibiría el Transportista Independiente, si su servicio fuera valorizado conforme al régimen remuneratorio que se aplica a la Concesionaria.
D46: Cargo por Capacidad | E46: kV | F46: km | I46: RM por Cap. Transporte | K46: RM por E. E. T. | X46: TOTAL
D48: PASO DE LOS LIBRES - MONTE CASEROS | E48: 132 | F48: 100.7 | I48: =F48*$J$19*$E$18/100 -> 258846.1195 | K48: 41472 | M48: ="(DTE "&DATO!$G$14&DATO!$H$14&")" -> (DTE 0516) | X48: =I48+I52 -> 270782.1115
D50: E.T. | E50: kV | F50: SALIDA | G50: SALIDA | I50: RM por Conexión
D52: PASO DE LOS LIBRES | E52: 132 | F52: INTERRUPTOR TRAFO 1 | I52: =Y20*E18 -> 11935.992
H55: RM = | I55: =X48+I52 -> 282718.1035 | M55: RM * = | X55: 118738.7016
C57: d) CS: Es el cargo por Supervisión de la Operación que la Transportista percibe por supervisar la operación y mantenimiento del Transportista Independiente.
D59: Cargo por Supervisión afectado a la sanción | H59: CS = | I59: =E19*X55 -> 2968.467539 | L59: RM* = VALOR EMPLEADO PARA CALCULAR CS
C61: e) SANCIÓN
D62: Sanción Calculada | E62: =10*Y35*I59/I55 -> 11664.71621
D64: TOTAL A PENALIZAR A TRANSNEA S.A. POR SUPERVISIÓN A D.P.E.C.
H66: SANCIÓN = | I66: =IF(E62>3*I59,3*I59,$E$62) -> 8905.402618

Sheet DATO
A1: Mes | B1: Mes | C1: Dia | D1: Año
A2: enero | B2: 01 | C2: 31 | D2: 2006
A3: febrero | B3: 02 | C3: =IF(MOD(E14,4)=0,29,28) -> 29 | D3: =+D2+1 -> 2007
A4: marzo | B4: 03 | C4: 31 | D4: =+D3+1 -> 2008
A5: abril | B5: 04 | C5: 30 | D5: =+D4+1 -> 2009
A6: mayo | B6: 05 | C6: 31 | D6: 2010
A7: junio | B7: 06 | C7: 30 | D7: 2011
A8: julio | B8: 07 | C8: 31 | D8: 2012
A9: agosto | B9: 08 | C9: 31 | D9: 2013
A10: septiembre | B10: 09 | C10: 30 | D10: 2014
A11: octubre | B11: 10 | C11: 31 | D11: 2015
A12: noviembre | B12: 11 | C12: 30 | D12: 2016
A13: diciembre | B13: 12 | C13: 31 | I13: Total
A14: 11 | B14: 5 | C14: =CELL("CONTENIDO",OFFSET(A1,B14,0)) -> mayo | D14: =CELL("CONTENIDO",OFFSET(C1,B14,0)) -> 31 | E14: =CELL("CONTENIDO",OFFSET(D1,A14,0)) -> 2016 | F14: ="Desde el 01 al " & D14 & " de " & C14 & " de " & E14 -> Desde el 01 al 31 de mayo de 2016 | G14: =CELL("CONTENIDO",OFFSET(B1,B14,0)) -> 05 | H14: =RIGHT(E14,2) -> 16 | I14: B14
B15: ="\\rugor\files\Transporte\Transporte\AA PROCESO AUT ARCHIVOS J\TRANSNEA\" &E14 -> \\rugor\files\Transporte\Transporte\AA PROCESO AUT ARCHIVOS J\TRANSNEA\2016 | G15: ="J"&G14&H14&"NEA" -> J0516NEA
B16: ="\\rugor\files\Transporte\transporte\AA PROCESO AUT\INTERCAMBIO\" &H14&G14 -> \\rugor\files\Transporte\transporte\AA PROCESO AUT\INTERCAMBIO\1605
A17: Hoja | B17: FilaInicio | C17: FilasPlantilla | D17: Columnas | E17: NombreHoja | F17: OrigenDeDatos | G17: Col00 | H17: Col01 | I17: Col02 | J17: Col03 | K17: Col04 | L17: Col05 | M17: Col06 | N17: Col07 | O17: Col08 | P17: Col09 | Q17: Col10 | R17: Col11 | S17: Col12 | T17: Col13 | U17: Col14 | V17: Col15 | W17: FILHTOTAL | X17: COLHTOTAL | Y17: FILHCALC | Z17: COLHCALC | AA17: FILTRANSP | AB17: COLTRANSP | AC17: COL TSAL
A18: MODELO L | B18: 23 | C18: 20 | D18: 11 | E18: ="LI-" & $G$14 -> LI-05 | F18: TRANSNEA_INDISPONIBILIDADES_LINEAS_TRANSNEA.XLS | G18: 3 | H18: 5 | I18: 4 | J18: 6 | K18: 7 | L18: 8 | M18: 0 | N18: 10 | O18: 11 | P18: 14 | Q18: 0 | R18: 26 | S18: 0 | T18: 0 | U18: 0 | V18: 0 | W18: 20 | X18: 9 | Y18: 44 | Z18: 27 | AA18: 21 | AB18: 27 | AC18: 14
A19: MODELO T | B19: 22 | C19: 20 | D19: 13 | E19: ="T-" & $G$14 -> T-05 | F19: TRANSNEA_INDISPONIBILIDADES_TRAFOS_TRANSNEA.XLS | G19: 3 | H19: 5 | I19: 4 | J19: 6 | K19: 7 | L19: 8 | M19: 9 | N19: 11 | O19: 12 | P19: 15 | Q19: 16 | R19: 18 | S19: 28 | T19: 17 | U19: 0 | V19: 0 | W19: 28 | X19: 9 | Y19: 43 | Z19: 29 | AA19: 20 | AB19: 29 | AC19: 15
A20: MODELO S | B20: 22 | C20: 20 | D20: 10 | E20: ="SA-" & $G$14 -> SA-05 | F20: TRANSNEA_INDISPONIBILIDADES_SALIDAS_TRANSNEA.XLS | G20: 3 | H20: 5 | I20: 4 | J20: 6 | K20: 7 | L20: 8 | M20: 10 | N20: 11 | O20: 14 | P20: 15 | Q20: 21 | R20: 0 | S20: 0 | T20: 0 | U20: 0 | V20: 0 | W20: 32 | X20: 9 | Y20: 43 | Z20: 22 | AA20: 20 | AB20: 22 | AC20: 14
A21: MODELO L DPEC | B21: 23 | C21: 20 | D21: 11 | E21: ="LI-DPEC-" & $G$14 -> LI-DPEC-05 | F21: TRANSNEA_INDISPONIBILIDADES_LINEAS_DPEC.XLS | G21: 3 | H21: 5 | I21: 4 | J21: 6 | K21: 7 | L21: 8 | M21: 0 | N21: 10 | O21: 11 | P21: 14 | Q21: 0 | R21: 26 | S21: 0 | T21: 0 | U21: 0 | V21: 0 | W21: 21 | X21: 9 | Y21: 44 | Z21: 27 | AA21: 21 | AB21: 27 | AC21: 14
A22: MODELO L ENECOR | B22: 23 | C22: 20 | D22: 11 | E22: ="LI-ENECOR-" & $G$14 -> LI-ENECOR-05 | F22: TRANSNEA_INDISPONIBILIDADES_LINEAS_ENECOR.XLS | G22: 3 | H22: 5 | I22: 4 | J22: 6 | K22: 7 | L22: 8 | M22: 0 | N22: 10 | O22: 11 | P22: 14 | Q22: 0 | R22: 26 | S22: 0 | T22: 0 | U22: 0 | V22: 0 | W22: 22 | X22: 9 | Y22: 44 | Z22: 27 | AA22: 21 | AB22: 27 | AC22: 14
A23: MODELO L ELING | B23: 25 | C23: 20 | D23: 11 | E23: ="LI-ELECT-" & $G$14 -> LI-ELECT-05 | F23: TRANSNEA_INDISPONIBILIDADES_LINEAS_ELECTROINGENIERIA.XLS | G23: 3 | H23: 5 | I23: 4 | J23: 6 | K23: 7 | L23: 8 | M23: 0 | N23: 10 | O23: 11 | P23: 14 | Q23: 0 | R23: 26 | S23: 0 | T23: 0 | U23: 0 | V23: 0 | W23: 23 | X23: 9 | Y23: 44 | Z23: 27 | AA23: 21 | AB23: 27 | AC23: 14
A24: MODELO T ELING | B24: 22 | C24: 20 | D24: 13 | E24: ="T-ELECT-" & $G$14 -> T-ELECT-05 | F24: TRANSNEA_INDISPONIBILIDADES_TRAFOS_ELECTROINGENIERIA.XLS | G24: 3 | H24: 5 | I24: 4 | J24: 6 | K24: 7 | L24: 8 | M24: 9 | N24: 11 | O24: 12 | P24: 15 | Q24: 16 | R24: 18 | S24: 28 | T24: 17 | U24: 0 | V24: 0 | W24: 29 | X24: 9 | Y24: 43 | Z24: 29 | AA24: 20 | AB24: 29 | AC24: 15
A25: MODELO S ELING | B25: 22 | C25: 20 | D25: 10 | E25: ="SA-ELECT-" & $G$14 -> SA-ELECT-05 | F25: TRANSNEA_INDISPONIBILIDADES_SALIDAS_ELECTROINGENIERIA.XLS | G25: 3 | H25: 5 | I25: 4 | J25: 6 | K25: 7 | L25: 8 | M25: 10 | N25: 11 | O25: 14 | P25: 15 | Q25: 21 | R25: 0 | S25: 0 | T25: 0 | U25: 0 | V25: 0 | W25: 33 | X25: 9 | Y25: 43 | Z25: 22 | AA25: 20 | AB25: 22 | AC25: 14
A26: SUP-DPEC | B26: 26 | C26: 25 | D26: 11 | E26: SUP-DPEC | F26: TRANSNEA_INDISPONIBILIDADES_LINEAS_DPEC.XLS | G26: 0 | H26: 0 | I26: 0 | J26: 4 | K26: 5 | L26: 6 | M26: 0 | N26: 8 | O26: 9 | P26: 12 | Q26: 0 | R26: 24 | S26: 0 | T26: 0 | U26: 0 | V26: 0 | W26: 0 | X26: 0 | Y26: 0 | Z26: 0 | AA26: 0 | AB26: 0 | AC26: 0
A27: MODELO VST | B27: 19 | C27: 24 | D27: 4 | E27: ="CAUSAS-VST-" & $G$14 -> CAUSAS-VST-05 | F27: TRANSNEA_CAUSAS_VST.XLS | G27: 3 | H27: 4 | I27: 5 | J27: 6 | K27: 7 | L27: 0 | M27: 0 | N27: 0 | O27: 0 | P27: 0 | Q27: 0 | R27: 0 | S27: 0 | T27: 0 | U27: 0 | V27: 0 | W27: 999 | X27: 999 | Y27: 0 | Z27: 0 | AA27: 0 | AB27: 0 | AC27: 0
